[Event "Live Chess"]
[Site "Chess.com"]
[Date "2024.06.01"]
[Round "-"]
[White "Isambard_Thomas"]
[Black "koekoekoe"]
[Result "0-1"]
[WhiteElo "2162"]
[BlackElo "2042"]
[TimeControl "300"]
[EndTime "13:51:58 PDT"]
[Termination "koekoekoe won by resignation"]

1. d4 {[%clk 0:04:56.6]} 1... Nf6 {[%clk 0:04:58.3]} 2. Nf3 {[%clk 0:04:56.5]}
2... d5 {[%clk 0:04:57.7]} 3. Bg5 {[%clk 0:04:56.4]} 3... Bf5 {[%clk 0:04:56.7]}
4. e3 {[%clk 0:04:55.8]} 4... e6 {[%clk 0:04:56.2]} 5. Bd3 {[%clk 0:04:54.8]}
5... Bxd3 {[%clk 0:04:54.5]} 6. Qxd3 {[%clk 0:04:54.7]} 6... c6 {[%clk
0:04:51.5]} 7. c3 {[%clk 0:04:53.7]} 7... Nbd7 {[%clk 0:04:49.8]} 8. Nbd2 {[%clk
0:04:52.3]} 8... Bd6 {[%clk 0:04:48.4]} 9. O-O-O {[%clk 0:04:51.1]} 9... h6
{[%clk 0:04:47.6]} 10. Bf4 {[%clk 0:04:48.2]} 10... Bxf4 {[%clk 0:04:45.8]} 11.
exf4 {[%clk 0:04:48.1]} 11... Qa5 {[%clk 0:04:43.2]} 12. Ne5 {[%clk 0:04:48]}
12... Qxa2 {[%clk 0:04:36.3]} 13. f3 {[%clk 0:04:39.5]} 13... Nb6 {[%clk
0:04:16.9]} 14. Qb1 {[%clk 0:03:52.1]} 14... Qxb1+ {[%clk 0:03:58.5]} 15. Kxb1
{[%clk 0:03:52]} 15... Nfd7 {[%clk 0:03:54.5]} 16. Rhe1 {[%clk 0:03:46.1]} 16...
Nxe5 {[%clk 0:03:46.4]} 17. Rxe5 {[%clk 0:03:44.7]} 17... Kd7 {[%clk 0:03:43.2]}
18. Rde1 {[%clk 0:03:38.1]} 18... Rae8 {[%clk 0:03:42.3]} 19. Kc2 {[%clk
0:03:27.7]} 19... Nc8 {[%clk 0:03:35.4]} 20. Nb3 {[%clk 0:03:23.5]} 20... b6
{[%clk 0:03:33.7]} 21. Ra1 {[%clk 0:03:10.7]} 21... a5 {[%clk 0:03:25.5]} 22.
Nc1 {[%clk 0:03:06]} 22... Nd6 {[%clk 0:03:24.2]} 23. Nd3 {[%clk 0:03:01]} 23...
Ra8 {[%clk 0:03:13.4]} 24. Ree1 {[%clk 0:02:47.3]} 24... a4 {[%clk 0:03:03.8]}
25. Ne5+ {[%clk 0:02:46.2]} 25... Kc7 {[%clk 0:03:00.4]} 26. Ra3 {[%clk
0:02:41.4]} 26... b5 {[%clk 0:02:34.5]} 27. h3 {[%clk 0:02:30.7]} 27... Rhf8
{[%clk 0:02:31.6]} 28. g4 {[%clk 0:02:24.5]} 28... Nc4 {[%clk 0:02:30.7]} 29.
Raa1 {[%clk 0:02:16.3]} 29... Nxe5 {[%clk 0:02:27.5]} 30. fxe5 {[%clk
0:02:13.9]} 30... Kd7 {[%clk 0:02:26.2]} 31. Re3 {[%clk 0:02:09.6]} 31... Rfc8
{[%clk 0:02:20.2]} 32. f4 {[%clk 0:02:05.2]} 32... c5 {[%clk 0:02:19.3]} 33. Rd3
{[%clk 0:01:59.3]} 33... cxd4 {[%clk 0:02:13.5]} 34. Rxd4 {[%clk 0:01:59.2]}
34... Rc4 {[%clk 0:02:11.8]} 35. Rad1 {[%clk 0:01:55.9]} 35... Rxd4 {[%clk
0:02:09.7]} 36. Rxd4 {[%clk 0:01:46.9]} 36... Rc8 {[%clk 0:02:09.6]} 37. Rb4
{[%clk 0:01:39.2]} 37... Kc6 {[%clk 0:02:08]} 38. Rd4 {[%clk 0:01:20.5]} 38...
Rb8 {[%clk 0:02:02.5]} 39. f5 {[%clk 0:01:06]} 39... Kc5 {[%clk 0:01:58.5]} 40.
fxe6 {[%clk 0:00:59.8]} 40... fxe6 {[%clk 0:01:58.4]} 41. Rf4 {[%clk 0:00:55.2]}
41... Rb7 {[%clk 0:01:46.3]} 42. Rf8 {[%clk 0:00:51.7]} 42... b4 {[%clk
0:01:38.1]} 43. Rc8+ {[%clk 0:00:46.7]} 43... Kb5 {[%clk 0:01:35.9]} 44. cxb4
{[%clk 0:00:38]} 44... Kxb4 {[%clk 0:01:33.2]} 45. h4 {[%clk 0:00:37.6]} 45...
Rd7 {[%clk 0:01:18.2]} 46. Rb8+ {[%clk 0:00:32.8]} 46... Ka5 {[%clk 0:01:17.8]}
47. Re8 {[%clk 0:00:28.3]} 47... d4 {[%clk 0:01:14]} 48. Rxe6 {[%clk 0:00:26.7]}
48... d3+ {[%clk 0:01:13]} 49. Kd2 {[%clk 0:00:25.1]} 49... Kb4 {[%clk
0:01:12.9]} 50. Rb6+ {[%clk 0:00:23.5]} 50... Kc4 {[%clk 0:01:11.2]} 51. Rd6
{[%clk 0:00:21.3]} 51... Re7 {[%clk 0:01:08.9]} 52. e6 {[%clk 0:00:19.7]} 52...
Kc5 {[%clk 0:01:02.9]} 53. Rxd3 {[%clk 0:00:17.6]} 53... Rxe6 {[%clk 0:01:01.6]}
54. Rc3+ {[%clk 0:00:17.5]} 54... Kb4 {[%clk 0:00:59.2]} 55. Re3 {[%clk
0:00:15.3]} 55... Rxe3 {[%clk 0:00:52.7]} 56. Kxe3 {[%clk 0:00:15.2]} 56... Kb3
{[%clk 0:00:52.1]} 0-1

[Event "Live Chess"]
[Site "Chess.com"]
[Date "2024.06.01"]
[Round "-"]
[White "nitrofish07"]
[Black "jellhhggffhjjjjjj"]
[Result "1-0"]
[WhiteElo "2095"]
[BlackElo "227"]
[TimeControl "300"]
[EndTime "13:52:05 PDT"]
[Termination "nitrofish07 won by checkmate"]

1. e4 {[%clk 0:04:59.3]} 1... d5 {[%clk 0:04:54.4]} 2. exd5 {[%clk 0:04:58.3]}
2... Nf6 {[%clk 0:04:52.5]} 3. d4 {[%clk 0:04:57]} 3... e6 {[%clk 0:04:50.5]} 4.
dxe6 {[%clk 0:04:42.8]} 4... Bxe6 {[%clk 0:04:49.2]} 5. Nf3 {[%clk 0:04:41.5]}
5... c6 {[%clk 0:04:38]} 6. c4 {[%clk 0:04:40.4]} 6... Nbd7 {[%clk 0:04:31.6]}
7. Nc3 {[%clk 0:04:39.2]} 7... Bb4 {[%clk 0:04:29.3]} 8. Be2 {[%clk 0:04:37.7]}
8... Qa5 {[%clk 0:04:25]} 9. Bd2 {[%clk 0:04:36]} 9... c5 {[%clk 0:04:20]} 10.
d5 {[%clk 0:04:33.8]} 10... Bf5 {[%clk 0:04:05.9]} 11. O-O {[%clk 0:04:32.1]}
11... O-O-O {[%clk 0:04:01.8]} 12. a3 {[%clk 0:04:30.2]} 12... Bxc3 {[%clk
0:03:57.8]} 13. Bxc3 {[%clk 0:04:30.1]} 13... Qa6 {[%clk 0:03:54.7]} 14. b4
{[%clk 0:04:28.1]} 14... Rhe8 {[%clk 0:03:46.9]} 15. Re1 {[%clk 0:04:20.7]}
15... h5 {[%clk 0:03:27.4]} 16. a4 {[%clk 0:04:17.7]} 16... cxb4 {[%clk
0:03:21.9]} 17. Bxb4 {[%clk 0:04:08.4]} 17... Nb6 {[%clk 0:03:09]} 18. c5 {[%clk
0:04:03.7]} 18... Rxd5 {[%clk 0:02:59.5]} 19. Bxa6 {[%clk 0:03:59.1]} 19... Rxd1
{[%clk 0:02:57.2]} 20. Bxb7+ {[%clk 0:03:54.6]} 20... Kxb7 {[%clk 0:02:51.4]}
21. Raxd1 {[%clk 0:03:52.9]} 21... Rxe1+ {[%clk 0:02:36.3]} 22. Rxe1 {[%clk
0:03:52.8]} 22... Bg4 {[%clk 0:02:33.5]} 23. cxb6 {[%clk 0:03:51.5]} 23... axb6
{[%clk 0:02:31.9]} 24. Re7+ {[%clk 0:03:50]} 24... Ka6 {[%clk 0:02:29]} 25. Rxf7
{[%clk 0:03:48.8]} 25... b5 {[%clk 0:02:13.6]} 26. axb5+ {[%clk 0:03:47]} 26...
Kxb5 {[%clk 0:02:12.4]} 27. Be7 {[%clk 0:03:46.3]} 27... Ne4 {[%clk 0:02:05.9]}
28. Rxg7 {[%clk 0:03:42.6]} 28... Kc4 {[%clk 0:01:55.2]} 29. h3 {[%clk
0:03:41.7]} 29... Bxh3 {[%clk 0:01:43.7]} 30. gxh3 {[%clk 0:03:40.5]} 30... Nxf2
{[%clk 0:01:42.1]} 31. Kxf2 {[%clk 0:03:39.7]} 31... Kd5 {[%clk 0:01:40.3]} 32.
Rg5+ {[%clk 0:03:39.6]} 32... Ke6 {[%clk 0:01:38.2]} 33. Rxh5 {[%clk 0:03:39.5]}
33... Kxe7 {[%clk 0:01:36.2]} 34. Rg5 {[%clk 0:03:39.4]} 34... Kf6 {[%clk
0:01:34.6]} 35. h4 {[%clk 0:03:39.3]} 35... Kf7 {[%clk 0:01:30.6]} 36. h5 {[%clk
0:03:39.2]} 36... Kf6 {[%clk 0:01:29.1]} 37. h6 {[%clk 0:03:39.1]} 37... Ke6
{[%clk 0:01:22.4]} 38. h7 {[%clk 0:03:39]} 38... Kd6 {[%clk 0:01:21.5]} 39. h8=Q
{[%clk 0:03:37.6]} 39... Kc6 {[%clk 0:01:20.8]} 40. Qd4 {[%clk 0:03:36.4]} 40...
Kc7 {[%clk 0:01:18]} 41. Rc5+ {[%clk 0:03:35.9]} 41... Kb6 {[%clk 0:01:16.9]}
42. Qb4+ {[%clk 0:03:35.5]} 42... Ka6 {[%clk 0:01:15.3]} 43. Ra5# {[%clk
0:03:35.4]} 1-0

[Event "Live Chess"]
[Site "Chess.com"]
[Date "2024.06.01"]
[Round "-"]
[White "Dhaydon19"]
[Black "blunderabit"]
[Result "1-0"]
[WhiteElo "2679"]
[BlackElo "1778"]
[TimeControl "300"]
[EndTime "13:52:12 PDT"]
[Termination "Dhaydon19 won on time"]

1. d3 {[%clk 0:04:57.1]} 1... Nf6 {[%clk 0:04:57.2]} 2. Nf3 {[%clk 0:04:56.6]}
2... e6 {[%clk 0:04:53.9]} 3. g3 {[%clk 0:04:56.5]} 3... b6 {[%clk 0:04:52.4]}
4. Bg2 {[%clk 0:04:56.2]} 4... Bb7 {[%clk 0:04:51.5]} 5. O-O {[%clk 0:04:56]}
5... c5 {[%clk 0:04:49.7]} 6. c4 {[%clk 0:04:55.4]} 6... Nc6 {[%clk 0:04:48]} 7.
Nc3 {[%clk 0:04:54]} 7... Rc8 {[%clk 0:04:43.7]} 8. Bf4 {[%clk 0:04:53]} 8... d6
{[%clk 0:04:40.3]} 9. Rc1 {[%clk 0:04:49.8]} 9... Be7 {[%clk 0:04:38.2]} 10. Qd2
{[%clk 0:04:47.8]} 10... O-O {[%clk 0:04:35.3]} 11. Rfd1 {[%clk 0:04:46.5]}
11... Qd7 {[%clk 0:04:28.8]} 12. e4 {[%clk 0:04:44]} 12... Ne8 {[%clk
0:04:09.7]} 13. Bh3 {[%clk 0:04:41]} 13... Nc7 {[%clk 0:04:03.6]} 14. Nd5 {[%clk
0:04:38.1]} 14... Nxd5 {[%clk 0:03:54.4]} 15. exd5 {[%clk 0:04:35.9]} 15... Nd8
{[%clk 0:03:52.6]} 16. Re1 {[%clk 0:04:29.9]} 16... f5 {[%clk 0:03:48]} 17. dxe6
{[%clk 0:04:21.5]} 17... Nxe6 {[%clk 0:03:43.1]} 18. Bg2 {[%clk 0:04:20.6]}
18... Nxf4 {[%clk 0:03:39.8]} 19. Qxf4 {[%clk 0:04:18.1]} 19... Bf6 {[%clk
0:03:32.1]} 20. b3 {[%clk 0:04:15.4]} 20... g6 {[%clk 0:03:13.1]} 21. h4 {[%clk
0:04:13.8]} 21... Rce8 {[%clk 0:03:08.7]} 22. Kf1 {[%clk 0:04:08.5]} 22... Kg7
{[%clk 0:02:54.1]} 23. Ng5 {[%clk 0:04:04.7]} 23... Bxg2+ {[%clk 0:02:42.3]} 24.
Kxg2 {[%clk 0:04:03.3]} 24... h6 {[%clk 0:02:37.8]} 25. Nf3 {[%clk 0:04:00.3]}
25... Qc6 {[%clk 0:02:34.3]} 26. Rxe8 {[%clk 0:03:42.9]} 26... Rxe8 {[%clk
0:02:32]} 27. Kf1 {[%clk 0:03:40.4]} 27... Be5 {[%clk 0:01:46.9]} 28. Nxe5
{[%clk 0:03:34.6]} 28... Qh1+ {[%clk 0:01:44]} 29. Ke2 {[%clk 0:03:32.8]} 29...
Qg2 {[%clk 0:01:27.4]} 30. Kd2 {[%clk 0:03:23.4]} 30... Rxe5 {[%clk 0:01:11.5]}
31. Re1 {[%clk 0:03:20.4]} 31... Kf6 {[%clk 0:00:41.7]} 32. d4 {[%clk
0:03:10.7]} 32... Re6 {[%clk 0:00:13.7]} 33. Rxe6+ {[%clk 0:03:05.9]} 33... Kxe6
{[%clk 0:00:05.6]} 34. d5+ {[%clk 0:03:05.2]} 34... Kd7 {[%clk 0:00:01]} 35. Qe3
{[%clk 0:03:04.2]} 1-0

[Event "Live Chess"]
[Site "Chess.com"]
[Date "2024.06.01"]
[Round "-"]
[White "kingside_rook"]
[Black "DylanMeyer1"]
[Result "1-0"]
[WhiteElo "2028"]
[BlackElo "1719"]
[TimeControl "300"]
[EndTime "13:52:14 PDT"]
[Termination "kingside_rook won by checkmate"]

1. e4 {[%clk 0:04:58.9]} 1... d5 {[%clk 0:04:58.9]} 2. exd5 {[%clk 0:04:57.7]}
2... Qxd5 {[%clk 0:04:58.8]} 3. Nc3 {[%clk 0:04:57.3]} 3... Qd6 {[%clk
0:04:58.7]} 4. Nb5 {[%clk 0:04:56.4]} 4... Qd8 {[%clk 0:04:57]} 5. d4 {[%clk
0:04:55.5]} 5... Nf6 {[%clk 0:04:56.3]} 6. c4 {[%clk 0:04:54.8]} 6... a6 {[%clk
0:04:55.7]} 7. Nc3 {[%clk 0:04:54.5]} 7... b6 {[%clk 0:04:55.1]} 8. d5 {[%clk
0:04:53.6]} 8... c6 {[%clk 0:04:53.3]} 9. Nf3 {[%clk 0:04:53.5]} 9... Bb7 {[%clk
0:04:49.8]} 10. Ne5 {[%clk 0:04:46.4]} 10... cxd5 {[%clk 0:04:45.7]} 11. cxd5
{[%clk 0:04:46.3]} 11... Nbd7 {[%clk 0:04:43.2]} 12. Nxf7 {[%clk 0:04:43.5]}
12... Kxf7 {[%clk 0:04:38.9]} 13. Bc4 {[%clk 0:04:43.3]} 13... b5 {[%clk
0:04:22]} 14. Bb3 {[%clk 0:04:41.2]} 14... Nc5 {[%clk 0:04:16.6]} 15. O-O {[%clk
0:04:37.9]} 15... Nxb3 {[%clk 0:04:14.6]} 16. Qxb3 {[%clk 0:04:37.8]} 16... Qd6
{[%clk 0:04:12.1]} 17. Bg5 {[%clk 0:04:33]} 17... h6 {[%clk 0:04:08.9]} 18. Bxf6
{[%clk 0:04:32]} 18... gxf6 {[%clk 0:04:08.8]} 19. Ne4 {[%clk 0:04:30.4]} 19...
Qxd5 {[%clk 0:04:00.6]} 20. Nc5 {[%clk 0:04:25.9]} 20... Qxb3 {[%clk 0:03:54.4]}
21. axb3 {[%clk 0:04:25.8]} 21... Bd5 {[%clk 0:03:43.8]} 22. Nxa6 {[%clk
0:04:25.2]} 22... Bb7 {[%clk 0:03:38.2]} 23. Nc5 {[%clk 0:04:23.8]} 23... Rxa1
{[%clk 0:03:35.2]} 24. Rxa1 {[%clk 0:04:23.7]} 24... Bd5 {[%clk 0:03:31.8]} 25.
Ra5 {[%clk 0:04:22.1]} 25... Bxb3 {[%clk 0:03:28.7]} 26. Nxb3 {[%clk 0:04:19.6]}
26... Bg7 {[%clk 0:03:28.2]} 27. Rxb5 {[%clk 0:04:18.6]} 27... Rd8 {[%clk
0:03:25.1]} 28. g3 {[%clk 0:04:18.1]} 28... Rd3 {[%clk 0:03:24.2]} 29. Nc5
{[%clk 0:04:17.1]} 29... Rd2 {[%clk 0:03:22.3]} 30. Kg2 {[%clk 0:04:16.8]} 30...
f5 {[%clk 0:03:17.1]} 31. b4 {[%clk 0:04:14.8]} 31... Bd4 {[%clk 0:03:15.8]} 32.
Nb3 {[%clk 0:04:12.7]} 32... Rxf2+ {[%clk 0:03:12.7]} 33. Kg1 {[%clk 0:04:12.2]}
33... Be3 {[%clk 0:03:10.3]} 34. Re5 {[%clk 0:04:07.4]} 34... Rf3+ {[%clk
0:02:49.5]} 35. Kg2 {[%clk 0:04:04]} 35... Rf2+ {[%clk 0:02:47.4]} 36. Kh3
{[%clk 0:04:02.4]} 36... Bg5 {[%clk 0:02:40.5]} 37. Nc5 {[%clk 0:04:00.5]} 37...
Bf6 {[%clk 0:02:23]} 38. Re3 {[%clk 0:03:55.5]} 38... Rb2 {[%clk 0:02:17.9]} 39.
Na6 {[%clk 0:03:50.2]} 39... e5 {[%clk 0:02:06]} 40. Rc3 {[%clk 0:03:43.7]}
40... Kg6 {[%clk 0:01:54.8]} 41. Rc6 {[%clk 0:03:41.8]} 41... Kg5 {[%clk
0:01:53.4]} 42. Nc5 {[%clk 0:03:39.8]} 42... e4 {[%clk 0:01:46.6]} 43. Ne6+
{[%clk 0:03:38.9]} 43... Kg6 {[%clk 0:01:45.9]} 44. Nf8+ {[%clk 0:03:37.9]}
44... Kg5 {[%clk 0:01:45.3]} 45. Nh7+ {[%clk 0:03:36.8]} 45... Kg6 {[%clk
0:01:44.6]} 46. Nxf6 {[%clk 0:03:36.1]} 46... Kg7 {[%clk 0:01:44]} 47. Nh5+
{[%clk 0:03:34.8]} 47... Kf7 {[%clk 0:01:41.5]} 48. Nf4 {[%clk 0:03:34.2]} 48...
e3 {[%clk 0:01:39.5]} 49. Rxh6 {[%clk 0:03:32.2]} 49... e2 {[%clk 0:01:37.7]}
50. Re6 {[%clk 0:03:32.1]} 50... Rxb4 {[%clk 0:01:35.9]} 51. Rxe2 {[%clk
0:03:31.1]} 51... Re4 {[%clk 0:01:35.5]} 52. Rxe4 {[%clk 0:03:29.8]} 52... fxe4
{[%clk 0:01:35.4]} 53. Kg2 {[%clk 0:03:29.6]} 53... Kf6 {[%clk 0:01:35.3]} 54.
Kf2 {[%clk 0:03:28.7]} 54... Kf5 {[%clk 0:01:35.2]} 55. Ke3 {[%clk 0:03:28.6]}
55... Kg4 {[%clk 0:01:34.1]} 56. Kxe4 {[%clk 0:03:28.2]} 56... Kg5 {[%clk
0:01:32.7]} 57. h4+ {[%clk 0:03:27.3]} 57... Kg4 {[%clk 0:01:32.6]} 58. h5
{[%clk 0:03:26.7]} 58... Kxg3 {[%clk 0:01:31.6]} 59. h6 {[%clk 0:03:26.2]} 59...
Kf2 {[%clk 0:01:31]} 60. h7 {[%clk 0:03:26.1]} 60... Ke1 {[%clk 0:01:29.9]} 61.
h8=Q {[%clk 0:03:25.7]} 61... Kd2 {[%clk 0:01:29.8]} 62. Qb2+ {[%clk 0:03:25.1]}
62... Ke1 {[%clk 0:01:28.2]} 63. Ng2+ {[%clk 0:03:24.3]} 63... Kd1 {[%clk
0:01:22.2]} 64. Ne3+ {[%clk 0:03:22.8]} 64... Ke1 {[%clk 0:01:20.8]} 65. Nf5
{[%clk 0:03:21.6]} 65... Kf1 {[%clk 0:01:20]} 66. Kf3 {[%clk 0:03:21.5]} 66...
Kg1 {[%clk 0:01:19.2]} 67. Qg2# {[%clk 0:03:21.1]} 1-0

[Event "Live Chess"]
[Site "Chess.com"]
[Date "2024.06.01"]
[Round "-"]
[White "kylet1990"]
[Black "Cimon"]
[Result "0-1"]
[WhiteElo "736"]
[BlackElo "1828"]
[TimeControl "300"]
[EndTime "13:52:26 PDT"]
[Termination "Cimon won by resignation"]

1. e4 {[%clk 0:04:59.5]} 1... c5 {[%clk 0:04:56.4]} 2. Nf3 {[%clk 0:04:56.7]}
2... Nc6 {[%clk 0:04:55]} 3. Bc4 {[%clk 0:04:55.7]} 3... e6 {[%clk 0:04:49.1]}
4. O-O {[%clk 0:04:54.1]} 4... g5 {[%clk 0:04:47.9]} 5. d3 {[%clk 0:04:51.8]}
5... h6 {[%clk 0:04:45.2]} 6. Nc3 {[%clk 0:04:49.7]} 6... g4 {[%clk 0:04:38.7]}
7. Nd2 {[%clk 0:04:41.3]} 7... Nf6 {[%clk 0:04:35.6]} 8. f3 {[%clk 0:04:40.2]}
8... Rg8 {[%clk 0:04:31.8]} 9. fxg4 {[%clk 0:04:38.8]} 9... Nxg4 {[%clk
0:04:16.6]} 10. h3 {[%clk 0:04:37.6]} 10... Nge5 {[%clk 0:04:06.7]} 11. Nf3
{[%clk 0:04:29.1]} 11... d6 {[%clk 0:03:57.4]} 12. Nxe5 {[%clk 0:04:26.2]} 12...
Nxe5 {[%clk 0:03:55.5]} 13. Bf4 {[%clk 0:04:21.1]} 13... Bg7 {[%clk 0:03:45.8]}
14. Bxe5 {[%clk 0:04:16.1]} 14... Bxe5 {[%clk 0:03:44.4]} 15. Qd2 {[%clk
0:04:11.1]} 15... Qh4 {[%clk 0:03:36.1]} 16. Qf2 {[%clk 0:03:59.3]} 16... Qe7
{[%clk 0:03:26.9]} 17. Rae1 {[%clk 0:03:50.9]} 17... Bd4 {[%clk 0:03:25.3]} 18.
Re3 {[%clk 0:03:48.1]} 18... a6 {[%clk 0:03:20.5]} 19. Qf3 {[%clk 0:03:43.1]}
19... Bxe3+ {[%clk 0:03:18.7]} 20. Qxe3 {[%clk 0:03:41.9]} 20... Qg5 {[%clk
0:03:17.2]} 21. Rf2 {[%clk 0:03:37.7]} 21... Qxe3 {[%clk 0:03:15.4]} 0-1

[Event "Live Chess"]
[Site "Chess.com"]
[Date "2024.06.01"]
[Round "-"]
[White "stevochess11"]
[Black "CarmelJane"]
[Result "0-1"]
[WhiteElo "1701"]
[BlackElo "2085"]
[TimeControl "300"]
[EndTime "13:52:41 PDT"]
[Termination "CarmelJane won by resignation"]

1. d4 {[%clk 0:04:56.2]} 1... g6 {[%clk 0:04:58.7]} 2. e4 {[%clk 0:04:53.6]}
2... Bg7 {[%clk 0:04:58.2]} 3. Nc3 {[%clk 0:04:51.9]} 3... c5 {[%clk 0:04:57.2]}
4. Be3 {[%clk 0:04:48.1]} 4... cxd4 {[%clk 0:04:47.2]} 5. Bxd4 {[%clk
0:04:46.8]} 5... e5 {[%clk 0:04:35.9]} 6. Be3 {[%clk 0:04:40.7]} 6... a6 {[%clk
0:04:33.1]} 7. Nf3 {[%clk 0:04:31]} 7... h6 {[%clk 0:04:29.8]} 8. Be2 {[%clk
0:04:27.5]} 8... Ne7 {[%clk 0:04:28.5]} 9. O-O {[%clk 0:04:21]} 9... O-O {[%clk
0:04:26.7]} 10. Qd2 {[%clk 0:04:15.8]} 10... Kh7 {[%clk 0:04:25.6]} 11. Bd3
{[%clk 0:04:07.6]} 11... Nbc6 {[%clk 0:04:23.7]} 12. Nh4 {[%clk 0:03:53]} 12...
Nb4 {[%clk 0:04:17.7]} 13. a3 {[%clk 0:03:20.5]} 13... Nxd3 {[%clk 0:04:16.6]}
14. cxd3 {[%clk 0:03:19.1]} 14... Nc6 {[%clk 0:04:16.5]} 15. f4 {[%clk
0:03:14.5]} 15... Qxh4 {[%clk 0:04:14.4]} 16. fxe5 {[%clk 0:03:10.2]} 16... Nxe5
{[%clk 0:04:14]} 17. Nd5 {[%clk 0:03:05.9]} 17... Ng4 {[%clk 0:04:05.1]} 18. Bf4
{[%clk 0:03:00.6]} 18... Bd4+ {[%clk 0:03:50.3]} 19. Ne3 {[%clk 0:02:50.6]}
19... Bxe3+ {[%clk 0:03:47.8]} 20. Qxe3 {[%clk 0:02:49.1]} 20... Nxe3 {[%clk
0:03:46.5]} 0-1

[Event "Live Chess"]
[Site "Chess.com"]
[Date "2024.06.01"]
[Round "-"]
[White "upoe610"]
[Black "Delacorta"]
[Result "1-0"]
[WhiteElo "2234"]
[BlackElo "1555"]
[TimeControl "300"]
[EndTime "13:52:43 PDT"]
[Termination "upoe610 won by resignation"]

1. e4 {[%clk 0:04:56.1]} 1... e6 {[%clk 0:04:59.1]} 2. d4 {[%clk 0:04:55.1]}
2... d5 {[%clk 0:04:58.4]} 3. Nc3 {[%clk 0:04:55]} 3... dxe4 {[%clk 0:04:57.2]}
4. Nxe4 {[%clk 0:04:54.2]} 4... Bd7 {[%clk 0:04:56.6]} 5. Nf3 {[%clk 0:04:53.2]}
5... Bc6 {[%clk 0:04:56]} 6. Bd3 {[%clk 0:04:52.9]} 6... Nd7 {[%clk 0:04:54.9]}
7. O-O {[%clk 0:04:51.3]} 7... Ngf6 {[%clk 0:04:54.1]} 8. Nxf6+ {[%clk
0:04:50.1]} 8... Nxf6 {[%clk 0:04:54]} 9. c3 {[%clk 0:04:49.6]} 9... Bxf3 {[%clk
0:04:52.7]} 10. Qxf3 {[%clk 0:04:48.6]} 10... c6 {[%clk 0:04:52]} 11. Bg5 {[%clk
0:04:47]} 11... Be7 {[%clk 0:04:51.2]} 12. Rae1 {[%clk 0:04:45]} 12... O-O
{[%clk 0:04:49.7]} 13. Qg3 {[%clk 0:04:43]} 13... Nd5 {[%clk 0:04:38.8]} 14. Qh4
{[%clk 0:04:39.1]} 14... g6 {[%clk 0:04:32.7]} 15. Bxe7 {[%clk 0:04:37.4]} 15...
Qxe7 {[%clk 0:04:32]} 16. Qxe7 {[%clk 0:04:36.2]} 16... Nxe7 {[%clk 0:04:31.9]}
17. f4 {[%clk 0:04:35.5]} 17... f5 {[%clk 0:04:30]} 18. Rxe6 {[%clk 0:04:33.6]}
18... Kf7 {[%clk 0:04:29.3]} 19. Bc4 {[%clk 0:04:31.9]} 19... Nd5 {[%clk
0:04:24.7]} 20. Bxd5 {[%clk 0:04:31.1]} 20... cxd5 {[%clk 0:04:23.6]} 21. Rfe1
{[%clk 0:04:31]} 21... Rfd8 {[%clk 0:04:05]} 22. Re7+ {[%clk 0:04:29.3]} 22...
Kf8 {[%clk 0:04:01.3]} 23. Rxb7 {[%clk 0:04:26.8]} 1-0

[Event "Live Chess"]
[Site "Chess.com"]
[Date "2024.06.01"]
[Round "-"]
[White "f4nomore"]
[Black "Tushinskiy"]
[Result "0-1"]
[WhiteElo "1213"]
[BlackElo "2268"]
[TimeControl "300"]
[EndTime "13:52:45 PDT"]
[Termination "Tushinskiy won by resignation"]

1. d4 {[%clk 0:04:56.3]} 1... d5 {[%clk 0:04:58.8]} 2. Nc3 {[%clk 0:04:54.4]}
2... c6 {[%clk 0:04:58.7]} 3. Nf3 {[%clk 0:04:52.1]} 3... Nf6 {[%clk 0:04:45.3]}
4. Bg5 {[%clk 0:04:46]} 4... Bg4 {[%clk 0:04:44.4]} 5. e3 {[%clk 0:04:26]} 5...
Nbd7 {[%clk 0:04:41.4]} 6. Be2 {[%clk 0:04:22.9]} 6... Bxf3 {[%clk 0:04:35.2]}
7. Bxf3 {[%clk 0:04:21.1]} 7... e5 {[%clk 0:04:35.1]} 8. dxe5 {[%clk 0:04:17.1]}
8... Nxe5 {[%clk 0:04:35]} 9. Be2 {[%clk 0:04:13.4]} 9... Qb6 {[%clk 0:04:33]}
10. b3 {[%clk 0:04:10.2]} 10... Bb4 {[%clk 0:04:31.4]} 11. Qd2 {[%clk
0:04:07.4]} 11... Ne4 {[%clk 0:04:29.9]} 12. Nxd5 {[%clk 0:03:20.9]} 12... Bxd2+
{[%clk 0:04:29.8]} 13. Kf1 {[%clk 0:03:18.9]} 13... cxd5 {[%clk 0:04:22.4]} 14.
c4 {[%clk 0:03:12.6]} 14... Nxg5 {[%clk 0:04:19.2]} 0-1

[Event "Live Chess"]
[Site "Chess.com"]
[Date "2024.06.01"]
[Round "-"]
[White "Zhevzh1k7"]
[Black "AndrewBak1"]
[Result "0-1"]
[WhiteElo "1098"]
[BlackElo "1848"]
[TimeControl "300"]
[EndTime "13:53:09 PDT"]
[Termination "AndrewBak1 won by resignation"]

1. e4 {[%clk 0:04:57.6]} 1... c5 {[%clk 0:04:58.6]} 2. Nf3 {[%clk 0:04:55.7]}
2... Nc6 {[%clk 0:04:57.8]} 3. d4 {[%clk 0:04:54.4]} 3... cxd4 {[%clk
0:04:57.1]} 4. Nxd4 {[%clk 0:04:53.1]} 4... Nf6 {[%clk 0:04:56.7]} 5. Nc3 {[%clk
0:04:51.6]} 5... e5 {[%clk 0:04:52.5]} 6. Nxc6 {[%clk 0:04:45.7]} 6... bxc6
{[%clk 0:04:36.7]} 7. Bg5 {[%clk 0:04:43.1]} 7... Be7 {[%clk 0:04:35]} 8. Bc4
{[%clk 0:04:38.1]} 8... O-O {[%clk 0:04:34.2]} 9. O-O {[%clk 0:04:36.4]} 9... d6
{[%clk 0:04:31.9]} 10. Qf3 {[%clk 0:04:32.1]} 10... h6 {[%clk 0:04:29.8]} 11.
Bxf6 {[%clk 0:04:30.9]} 11... Bxf6 {[%clk 0:04:28.4]} 12. Rad1 {[%clk
0:04:28.3]} 12... Qc7 {[%clk 0:04:27]} 13. Ne2 {[%clk 0:04:15.5]} 13... Be6
{[%clk 0:04:24.7]} 14. Bxe6 {[%clk 0:04:13.9]} 14... fxe6 {[%clk 0:04:24.6]} 15.
Qc3 {[%clk 0:04:08.7]} 15... d5 {[%clk 0:04:16.8]} 16. exd5 {[%clk 0:04:07.3]}
16... exd5 {[%clk 0:04:16.7]} 17. Ng3 {[%clk 0:04:04.1]} 17... e4 {[%clk
0:04:14.1]} 18. Nf5 {[%clk 0:03:59.3]} 18... Bxc3 {[%clk 0:04:11.2]} 0-1